[Event "Titled Tuesday Blitz January 11 2022"]
[White "Ezat, Mohamed"]
[Black "Moroni, Luca Jr"]
[WhiteFideId "10600906"]
[BlackFideId "865834"]
[WhiteElo "2386"]
[BlackElo "2573"]
[Result "1/2-1/2"]
[Round "07"]
[TimeControl "180+1"]
[Date "2022.01.11"]
[WhiteClock "0:00:02"]
[BlackClock "0:00:19"]

1. d4 {[%clk 0:03:00]}  g6 {[%clk 0:03:00]} 2. c4 {[%clk 0:03:00]}  Bg7 {[%clk 0:03:00]} 3. e4 {[%clk 0:03:00]}  d6 {[%clk 0:03:00]} 4. Nc3 {[%clk 0:03:01]}  c5 {[%clk 0:03:00]} 5. d5 {[%clk 0:03:01]}  Bxc3+ {[%clk 0:03:01]} 6. bxc3 {[%clk 0:03:00]}  e5 {[%clk 0:03:02]} 7. f4 {[%clk 0:02:58]}  Qh4+ {[%clk 0:03:02]} 8. g3 {[%clk 0:02:56]}  Qe7 {[%clk 0:03:03]} 9. Nf3 {[%clk 0:02:55]}  Bg4 {[%clk 0:03:01]} 10. Be2 {[%clk 0:02:54]}  exf4 {[%clk 0:02:57]} 11. Bxf4 {[%clk 0:02:53]}  Nd7 {[%clk 0:02:54]} 12. O-O {[%clk 0:02:43]}  Ngf6 {[%clk 0:02:51]} 13. e5 {[%clk 0:02:15]}  dxe5 {[%clk 0:02:36]} 14. d6 {[%clk 0:02:14]}  Qe6 {[%clk 0:02:17]} 15. Ng5 {[%clk 0:01:33]}  Bxe2 {[%clk 0:02:13]} 16. Nxe6 {[%clk 0:01:33]}  Bxd1 {[%clk 0:02:13]} 17. Nc7+ {[%clk 0:01:33]}  Kd8 {[%clk 0:02:13]} 18. Bg5 {[%clk 0:01:09]}  Be2 {[%clk 0:02:09]} 19. Nxa8 {[%clk 0:00:43]}  Bxf1 {[%clk 0:02:01]} 20. Rxf1 {[%clk 0:00:43]}  Rf8 {[%clk 0:01:22]} 21. Bxf6+ {[%clk 0:00:34]}  Nxf6 {[%clk 0:01:19]} 22. Rxf6 {[%clk 0:00:35]}  Kd7 {[%clk 0:01:18]} 23. Nc7 {[%clk 0:00:34]}  a6 {[%clk 0:01:15]} 24. Nd5 {[%clk 0:00:24]}  b5 {[%clk 0:01:14]} 25. Kf2 {[%clk 0:00:21]}  Rb8 {[%clk 0:00:53]} 26. Rxf7+ {[%clk 0:00:19]}  Kxd6 {[%clk 0:00:53]} 27. Rf6+ {[%clk 0:00:18]}  Kd7 {[%clk 0:00:53]} 28. Rxa6 {[%clk 0:00:16]}  bxc4 {[%clk 0:00:52]} 29. Nb6+ {[%clk 0:00:17]}  Kc6 {[%clk 0:00:52]} 30. Nxc4+ {[%clk 0:00:17]}  Kb5 {[%clk 0:00:53]} 31. Rb6+ {[%clk 0:00:11]}  Rxb6 {[%clk 0:00:53]} 32. Nxb6 {[%clk 0:00:11]}  Kxb6 {[%clk 0:00:54]} 33. Ke3 {[%clk 0:00:08]}  Kb5 {[%clk 0:00:54]} 34. Kd3 {[%clk 0:00:07]}  Ka4 {[%clk 0:00:31]} 35. Ke4 {[%clk 0:00:05]}  Ka3 {[%clk 0:00:30]} 36. Kxe5 {[%clk 0:00:05]}  Kxa2 {[%clk 0:00:31]} 37. Kd5 {[%clk 0:00:05]}  Kb3 {[%clk 0:00:31]} 38. Kxc5 {[%clk 0:00:03]}  Kxc3 {[%clk 0:00:31]} 39. Kd5 {[%clk 0:00:04]}  Kd3 {[%clk 0:00:32]} 40. Ke5 {[%clk 0:00:04]}  Ke3 {[%clk 0:00:32]} 41. Kf6 {[%clk 0:00:05]}  Kf3 {[%clk 0:00:31]} 42. Kg7 {[%clk 0:00:06]}  h5 {[%clk 0:00:16]} 43. Kxg6 {[%clk 0:00:06]}  Kg4 {[%clk 0:00:17]} 44. Kh6 {[%clk 0:00:04]}  h4 {[%clk 0:00:16]} 45. gxh4 {[%clk 0:00:01]}  Kxh4 {[%clk 0:00:17]} 46. Kg6 {[%clk 0:00:01]}  Kh3 {[%clk 0:00:18]} 47. Kf5 {[%clk 0:00:02]}  Kxh2 {[%clk 0:00:19]} 1/2-1/2


[Site "https://www.chess.com"]

[Event "Titled Tuesday Blitz January 11 2022"]
[White "FGHSMN"]
[Black "Kravtsiv, Martyn"]
[BlackFideId "14113147"]
[WhiteElo "2754"]
[BlackElo "2694"]
[Result "0-1"]
[Round "07"]
[TimeControl "180+1"]
[Date "2022.01.11"]
[WhiteClock "0:00:01"]
[BlackClock "0:00:15"]

1. b3 {[%clk 0:03:00]}  e5 {[%clk 0:02:59]} 2. Bb2 {[%clk 0:03:00]}  Nc6 {[%clk 0:02:59]} 3. c4 {[%clk 0:03:00]}  Nf6 {[%clk 0:02:55]} 4. e3 {[%clk 0:03:00]}  Be7 {[%clk 0:02:53]} 5. a3 {[%clk 0:02:58]}  O-O {[%clk 0:02:50]} 6. Qc2 {[%clk 0:02:58]}  Re8 {[%clk 0:02:42]} 7. d3 {[%clk 0:02:57]}  Bf8 {[%clk 0:02:40]} 8. Nf3 {[%clk 0:02:55]}  b6 {[%clk 0:02:32]} 9. Be2 {[%clk 0:02:53]}  Bb7 {[%clk 0:02:33]} 10. Nbd2 {[%clk 0:02:53]}  d5 {[%clk 0:02:32]} 11. cxd5 {[%clk 0:02:53]}  Qxd5 {[%clk 0:02:30]} 12. b4 {[%clk 0:02:41]}  Rac8 {[%clk 0:02:25]} 13. O-O {[%clk 0:02:37]}  a5 {[%clk 0:02:22]} 14. d4 {[%clk 0:02:28]}  exd4 {[%clk 0:01:55]} 15. b5 {[%clk 0:02:23]}  Na7 {[%clk 0:01:40]} 16. Bxd4 {[%clk 0:02:22]}  Nxb5 {[%clk 0:01:32]} 17. Bxf6 {[%clk 0:02:19]}  gxf6 {[%clk 0:01:33]} 18. Bc4 {[%clk 0:02:16]}  Qh5 {[%clk 0:01:32]} 19. e4 {[%clk 0:01:53]}  Nd6 {[%clk 0:01:29]} 20. Bd3 {[%clk 0:01:50]}  Bg7 {[%clk 0:01:28]} 21. Rfe1 {[%clk 0:01:47]}  c5 {[%clk 0:01:17]} 22. Rab1 {[%clk 0:01:14]}  c4 {[%clk 0:01:16]} 23. Nxc4 {[%clk 0:01:12]}  Nxc4 {[%clk 0:01:07]} 24. Bxc4 {[%clk 0:01:12]}  Ba6 {[%clk 0:01:08]} 25. Rxb6 {[%clk 0:00:44]}  Bxc4 {[%clk 0:01:05]} 26. Qd2 {[%clk 0:00:43]}  Red8 {[%clk 0:01:01]} 27. Qf4 {[%clk 0:00:40]}  Be6 {[%clk 0:00:57]} 28. h3 {[%clk 0:00:36]}  Qc5 {[%clk 0:00:44]} 29. Rbb1 {[%clk 0:00:17]}  Qxa3 {[%clk 0:00:39]} 30. e5 {[%clk 0:00:18]}  fxe5 {[%clk 0:00:35]} 31. Nxe5 {[%clk 0:00:18]}  Qd6 {[%clk 0:00:35]} 32. Qg3 {[%clk 0:00:03]}  Rc5 {[%clk 0:00:28]} 33. f4 {[%clk 0:00:02]}  Rd5 {[%clk 0:00:18]} 34. Nf3 {[%clk 0:00:01]}  Rd3 {[%clk 0:00:16]} 35. Kh1 {[%clk 0:00:01]}  Bd5 {[%clk 0:00:15]} 0-1


[Site "https://www.chess.com"]

[Event "Titled Tuesday Blitz January 11 2022"]
[White "Gaehwiler, Gabriel"]
[Black "Hess, Robert"]
[WhiteFideId "1314530"]
[BlackFideId "2022036"]
[WhiteElo "2383"]
[BlackElo "2557"]
[Result "1-0"]
[Round "07"]
[TimeControl "180+1"]
[Date "2022.01.11"]
[WhiteClock "0:00:40"]
[BlackClock "0:00:01"]

1. d4 {[%clk 0:03:00]}  g6 {[%clk 0:02:58]} 2. g3 {[%clk 0:02:57]}  Bg7 {[%clk 0:02:58]} 3. Bg2 {[%clk 0:02:57]}  d6 {[%clk 0:02:59]} 4. Nf3 {[%clk 0:02:57]}  Nd7 {[%clk 0:02:59]} 5. O-O {[%clk 0:02:55]}  e6 {[%clk 0:02:57]} 6. e4 {[%clk 0:02:54]}  Ne7 {[%clk 0:02:58]} 7. c3 {[%clk 0:02:54]}  b6 {[%clk 0:02:58]} 8. Re1 {[%clk 0:02:52]}  Bb7 {[%clk 0:02:56]} 9. h4 {[%clk 0:02:51]}  h6 {[%clk 0:02:57]} 10. Nbd2 {[%clk 0:02:47]}  e5 {[%clk 0:02:47]} 11. dxe5 {[%clk 0:02:45]}  dxe5 {[%clk 0:02:39]} 12. b4 {[%clk 0:02:32]}  a5 {[%clk 0:02:23]} 13. Bb2 {[%clk 0:02:30]}  O-O {[%clk 0:02:17]} 14. Nc4 {[%clk 0:02:24]}  Ba6 {[%clk 0:02:02]} 15. Ne3 {[%clk 0:02:18]}  axb4 {[%clk 0:01:57]} 16. cxb4 {[%clk 0:02:16]}  Nc6 {[%clk 0:01:57]} 17. a3 {[%clk 0:02:14]}  Nf6 {[%clk 0:01:47]} 18. Rc1 {[%clk 0:02:03]}  Qe8 {[%clk 0:01:15]} 19. Qc2 {[%clk 0:01:46]}  Bb5 {[%clk 0:01:07]} 20. Nd5 {[%clk 0:01:45]}  Ra7 {[%clk 0:01:02]} 21. Bf1 {[%clk 0:01:28]}  Ba4 {[%clk 0:00:44]} 22. Qc3 {[%clk 0:01:24]}  Nxd5 {[%clk 0:00:12]} 23. exd5 {[%clk 0:01:23]}  Ne7 {[%clk 0:00:04]} 24. Qc4 {[%clk 0:01:03]}  Nf5 {[%clk 0:00:01]} 25. Nxe5 {[%clk 0:00:59]}  Nd6 {[%clk 0:00:01]} 26. Qf4 {[%clk 0:00:57]}  Qa8 {[%clk 0:00:01]} 27. Bg2 {[%clk 0:00:46]}  Bb3 {[%clk 0:00:01]} 28. Qd2 {[%clk 0:00:40]}  Re8 {[%clk 0:00:01]} 29. Nc6 {[%clk 0:00:40]} 1-0


[Site "https://www.chess.com"]

[Event "Titled Tuesday Blitz January 11 2022"]
[White "Goncalves, Ivan Mesquita V"]
[Black "Pichot, Alan"]
[WhiteFideId "2114224"]
[BlackFideId "110973"]
[WhiteElo "2299"]
[BlackElo "2543"]
[Result "1-0"]
[Round "07"]
[TimeControl "180+1"]
[Date "2022.01.11"]
[WhiteClock "0:02:25"]
[BlackClock "0:03:00"]

1. d4 {[%clk 0:03:00]}  d6 {[%clk 0:03:00]} 2. Nf3 {[%clk 0:03:00]}  g6 {[%clk 0:03:01]} 3. Bf4 {[%clk 0:02:59]}  Bg7 {[%clk 0:03:02]} 4. e3 {[%clk 0:02:59]}  Nd7 {[%clk 0:03:03]} 5. Be2 {[%clk 0:02:57]}  Ngf6 {[%clk 0:03:04]} 6. h3 {[%clk 0:02:57]}  O-O {[%clk 0:03:05]} 7. O-O {[%clk 0:02:56]}  b6 {[%clk 0:03:06]} 8. a4 {[%clk 0:02:55]}  Bb7 {[%clk 0:03:06]} 9. c3 {[%clk 0:02:55]}  a5 {[%clk 0:03:07]} 10. Nbd2 {[%clk 0:02:55]}  Qe8 {[%clk 0:03:08]} 11. Bh2 {[%clk 0:02:55]}  e5 {[%clk 0:03:09]} 12. Qb3 {[%clk 0:02:52]}  Qe7 {[%clk 0:03:08]} 13. dxe5 {[%clk 0:02:48]}  dxe5 {[%clk 0:03:08]} 14. Nc4 {[%clk 0:02:46]}  Ne4 {[%clk 0:03:08]} 15. Rfd1 {[%clk 0:02:43]}  Rad8 {[%clk 0:03:06]} 16. Qa3 {[%clk 0:02:31]}  Qxa3 {[%clk 0:03:05]} 17. Nxa3 {[%clk 0:02:32]}  f6 {[%clk 0:03:04]} 18. Nb5 {[%clk 0:02:31]}  Ndc5 {[%clk 0:02:59]} 19. Nxc7 {[%clk 0:02:26]}  Nb3 {[%clk 0:03:00]} 20. Bc4+ {[%clk 0:02:25]} 1-0


[Site "https://www.chess.com"]

[Event "Titled Tuesday Blitz January 11 2022"]
[White "Gurevich, Dmitry"]
[Black "Narayanan.S.L"]
[WhiteFideId "2000407"]
[BlackFideId "5058422"]
[WhiteElo "2506"]
[BlackElo "2494"]
[Result "0-1"]
[Round "07"]
[TimeControl "180+1"]
[Date "2022.01.11"]
[WhiteClock "0:00:27"]
[BlackClock "0:01:15"]

1. d4 {[%clk 0:03:00]}  Nf6 {[%clk 0:02:59]} 2. c4 {[%clk 0:03:00]}  g6 {[%clk 0:03:00]} 3. Nc3 {[%clk 0:02:59]}  Bg7 {[%clk 0:03:00]} 4. e4 {[%clk 0:02:59]}  O-O {[%clk 0:03:01]} 5. Nf3 {[%clk 0:02:59]}  d6 {[%clk 0:03:01]} 6. Be2 {[%clk 0:03:00]}  e5 {[%clk 0:03:01]} 7. O-O {[%clk 0:02:59]}  exd4 {[%clk 0:03:00]} 8. Nxd4 {[%clk 0:02:59]}  Na6 {[%clk 0:03:00]} 9. f3 {[%clk 0:02:55]}  Re8 {[%clk 0:03:00]} 10. Kh1 {[%clk 0:02:53]}  c6 {[%clk 0:03:00]} 11. Bg5 {[%clk 0:02:51]}  h6 {[%clk 0:02:58]} 12. Bh4 {[%clk 0:02:49]}  Qb6 {[%clk 0:02:53]} 13. Nb3 {[%clk 0:02:46]}  Be6 {[%clk 0:02:43]} 14. Qxd6 {[%clk 0:02:40]}  Rad8 {[%clk 0:02:41]} 15. Qa3 {[%clk 0:02:31]}  Bf8 {[%clk 0:02:31]} 16. Qa5 {[%clk 0:02:30]}  g5 {[%clk 0:02:27]} 17. Qxb6 {[%clk 0:02:22]}  axb6 {[%clk 0:02:27]} 18. Bf2 {[%clk 0:02:22]}  Nc5 {[%clk 0:02:16]} 19. Nxc5 {[%clk 0:02:21]}  bxc5 {[%clk 0:02:16]} 20. Rfd1 {[%clk 0:02:19]}  Nd7 {[%clk 0:02:17]} 21. Rac1 {[%clk 0:02:05]}  f5 {[%clk 0:02:14]} 22. b3 {[%clk 0:02:02]}  Bg7 {[%clk 0:02:09]} 23. exf5 {[%clk 0:01:53]}  Bxf5 {[%clk 0:02:08]} 24. Bd3 {[%clk 0:01:52]}  Bxd3 {[%clk 0:01:48]} 25. Rxd3 {[%clk 0:01:51]}  Ne5 {[%clk 0:01:49]} 26. Rxd8 {[%clk 0:01:50]}  Rxd8 {[%clk 0:01:50]} 27. Ne4 {[%clk 0:01:47]}  Nd3 {[%clk 0:01:37]} 28. Rd1 {[%clk 0:01:45]}  Nxf2+ {[%clk 0:01:38]} 29. Nxf2 {[%clk 0:01:45]}  Bd4 {[%clk 0:01:36]} 30. Ne4 {[%clk 0:01:42]}  Ra8 {[%clk 0:01:37]} 31. Rd2 {[%clk 0:01:40]}  b5 {[%clk 0:01:34]} 32. g3 {[%clk 0:01:25]}  bxc4 {[%clk 0:01:27]} 33. bxc4 {[%clk 0:01:25]}  Ra4 {[%clk 0:01:27]} 34. Rc2 {[%clk 0:01:25]}  Kf7 {[%clk 0:01:25]} 35. Kg2 {[%clk 0:01:24]}  Kg6 {[%clk 0:01:26]} 36. Kf1 {[%clk 0:01:23]}  h5 {[%clk 0:01:25]} 37. h3 {[%clk 0:01:19]}  Ra3 {[%clk 0:01:25]} 38. Ke2 {[%clk 0:01:19]}  Re3+ {[%clk 0:01:25]} 39. Kd2 {[%clk 0:01:14]}  Rxf3 {[%clk 0:01:26]} 40. g4 {[%clk 0:01:04]}  h4 {[%clk 0:01:22]} 41. a4 {[%clk 0:00:47]}  Rxh3 {[%clk 0:01:21]} 42. Nd6 {[%clk 0:00:40]}  Ra3 {[%clk 0:01:17]} 43. Nf5 {[%clk 0:00:38]}  h3 {[%clk 0:01:17]} 44. Ke1 {[%clk 0:00:33]}  Ra1+ {[%clk 0:01:15]} 45. Ke2 {[%clk 0:00:28]}  h2 {[%clk 0:01:15]} 46. Ng3 {[%clk 0:00:27]}  Rg1 {[%clk 0:01:15]} 0-1


[Site "https://www.chess.com"]

[Event "Titled Tuesday Blitz January 11 2022"]
[White "Guseinov, Gadir"]
[Black "Fawzy, Adham"]
[WhiteFideId "13401378"]
[BlackFideId "10613129"]
[WhiteElo "2581"]
[BlackElo "2510"]
[Result "1-0"]
[Round "07"]
[TimeControl "180+1"]
[Date "2022.01.11"]
[WhiteClock "0:01:39"]
[BlackClock "0:00:14"]

1. e4 {[%clk 0:03:00]}  c5 {[%clk 0:02:25]} 2. Nc3 {[%clk 0:02:59]}  Nc6 {[%clk 0:02:24]} 3. Nf3 {[%clk 0:02:58]}  e5 {[%clk 0:02:22]} 4. Bc4 {[%clk 0:02:56]}  d6 {[%clk 0:02:22]} 5. d3 {[%clk 0:02:57]}  Be6 {[%clk 0:02:23]} 6. Nd5 {[%clk 0:02:52]}  Be7 {[%clk 0:02:19]} 7. c3 {[%clk 0:02:50]}  Nf6 {[%clk 0:02:20]} 8. Ng5 {[%clk 0:02:45]}  Qd7 {[%clk 0:01:52]} 9. Nxe6 {[%clk 0:02:40]}  fxe6 {[%clk 0:01:52]} 10. Nxf6+ {[%clk 0:02:40]}  Bxf6 {[%clk 0:01:53]} 11. Qg4 {[%clk 0:02:40]}  Nd8 {[%clk 0:01:52]} 12. f4 {[%clk 0:02:38]}  exf4 {[%clk 0:01:52]} 13. Bxf4 {[%clk 0:02:38]}  e5 {[%clk 0:01:53]} 14. Qxd7+ {[%clk 0:02:35]}  Kxd7 {[%clk 0:01:54]} 15. Be3 {[%clk 0:02:34]}  Ne6 {[%clk 0:01:52]} 16. Rf1 {[%clk 0:02:33]}  Ke7 {[%clk 0:01:53]} 17. g3 {[%clk 0:02:31]}  Rhf8 {[%clk 0:01:52]} 18. Ke2 {[%clk 0:02:31]}  Rab8 {[%clk 0:01:36]} 19. a4 {[%clk 0:02:30]}  Bg5 {[%clk 0:01:33]} 20. Bg1 {[%clk 0:02:29]}  Rxf1 {[%clk 0:01:26]} 21. Rxf1 {[%clk 0:02:30]}  Rf8 {[%clk 0:01:26]} 22. Ra1 {[%clk 0:02:30]}  a5 {[%clk 0:01:14]} 23. Ra3 {[%clk 0:02:28]}  b6 {[%clk 0:01:03]} 24. Rb3 {[%clk 0:02:27]}  Rb8 {[%clk 0:01:03]} 25. h4 {[%clk 0:02:27]}  Bh6 {[%clk 0:00:59]} 26. Bxe6 {[%clk 0:02:12]}  Kxe6 {[%clk 0:00:59]} 27. Rb5 {[%clk 0:02:13]}  Kd7 {[%clk 0:00:52]} 28. d4 {[%clk 0:02:13]}  Kc6 {[%clk 0:00:47]} 29. dxc5 {[%clk 0:02:12]}  dxc5 {[%clk 0:00:48]} 30. Bxc5 {[%clk 0:02:11]}  g6 {[%clk 0:00:19]} 31. Bf2 {[%clk 0:02:10]}  Bg7 {[%clk 0:00:19]} 32. b3 {[%clk 0:02:07]}  Rb7 {[%clk 0:00:19]} 33. Be3 {[%clk 0:02:03]}  h5 {[%clk 0:00:20]} 34. c4 {[%clk 0:02:01]}  Bf6 {[%clk 0:00:18]} 35. c5 {[%clk 0:01:58]}  bxc5 {[%clk 0:00:19]} 36. Rxa5 {[%clk 0:01:51]}  Rxb3 {[%clk 0:00:17]} 37. Ra6+ {[%clk 0:01:44]}  Rb6 {[%clk 0:00:18]} 38. Rxb6+ {[%clk 0:01:45]}  Kxb6 {[%clk 0:00:19]} 39. Kd3 {[%clk 0:01:45]}  Ka5 {[%clk 0:00:14]} 40. Kc4 {[%clk 0:01:45]}  Kxa4 {[%clk 0:00:14]} 41. Kxc5 {[%clk 0:01:41]}  Kb3 {[%clk 0:00:15]} 42. Kd5 {[%clk 0:01:42]}  Kc3 {[%clk 0:00:14]} 43. Bg5 {[%clk 0:01:42]}  Bg7 {[%clk 0:00:14]} 44. Bd8 {[%clk 0:01:42]}  Kd3 {[%clk 0:00:12]} 45. Bc7 {[%clk 0:01:42]}  Bh6 {[%clk 0:00:10]} 46. Bxe5 {[%clk 0:01:42]}  g5 {[%clk 0:00:11]} 47. Bf6 {[%clk 0:01:36]}  g4 {[%clk 0:00:07]} 48. e5 {[%clk 0:01:35]}  Bf8 {[%clk 0:00:08]} 49. e6 {[%clk 0:01:35]}  Ke3 {[%clk 0:00:09]} 50. e7 {[%clk 0:01:35]}  Bxe7 {[%clk 0:00:09]} 51. Bxe7 {[%clk 0:01:35]}  Kf3 {[%clk 0:00:10]} 52. Bd6 {[%clk 0:01:36]}  Ke3 {[%clk 0:00:11]} 53. Ke5 {[%clk 0:01:35]}  Kf3 {[%clk 0:00:12]} 54. Kf5 {[%clk 0:01:36]}  Ke3 {[%clk 0:00:11]} 55. Bf4+ {[%clk 0:01:37]}  Kd4 {[%clk 0:00:11]} 56. Kg5 {[%clk 0:01:38]}  Ke4 {[%clk 0:00:12]} 57. Kxh5 {[%clk 0:01:38]}  Kf5 {[%clk 0:00:13]} 58. Kh6 {[%clk 0:01:39]}  Kf6 {[%clk 0:00:13]} 59. h5 {[%clk 0:01:39]}  Kf5 {[%clk 0:00:13]} 60. Kg7 {[%clk 0:01:39]}  Ke6 {[%clk 0:00:14]} 61. h6 {[%clk 0:01:39]} 1-0


[Site "https://www.chess.com"]

[Event "Titled Tuesday Blitz January 11 2022"]
[White "Holt, Conrad"]
[Black "Alavkin, Arseny"]
[WhiteFideId "2034387"]
[BlackFideId "4120612"]
[WhiteElo "2586"]
[BlackElo "2391"]
[Result "0-1"]
[Round "07"]
[TimeControl "180+1"]
[Date "2022.01.11"]
[WhiteClock "0:00:49"]
[BlackClock "0:01:04"]

1. d4 {[%clk 0:03:00]}  Nf6 {[%clk 0:02:58]} 2. c4 {[%clk 0:03:01]}  e6 {[%clk 0:02:58]} 3. Nc3 {[%clk 0:03:01]}  d5 {[%clk 0:02:58]} 4. cxd5 {[%clk 0:03:01]}  exd5 {[%clk 0:02:59]} 5. Bg5 {[%clk 0:03:01]}  Be7 {[%clk 0:02:57]} 6. e3 {[%clk 0:03:01]}  c6 {[%clk 0:02:58]} 7. Qc2 {[%clk 0:03:00]}  O-O {[%clk 0:02:58]} 8. Bd3 {[%clk 0:02:58]}  h6 {[%clk 0:02:57]} 9. Bh4 {[%clk 0:02:58]}  Re8 {[%clk 0:02:57]} 10. Nf3 {[%clk 0:02:57]}  Be6 {[%clk 0:02:54]} 11. O-O {[%clk 0:02:54]}  Nbd7 {[%clk 0:02:55]} 12. a3 {[%clk 0:02:50]}  a5 {[%clk 0:02:55]} 13. Na4 {[%clk 0:02:47]}  b5 {[%clk 0:02:51]} 14. Nc5 {[%clk 0:02:46]}  Nxc5 {[%clk 0:02:49]} 15. dxc5 {[%clk 0:02:46]}  a4 {[%clk 0:02:49]} 16. Nd4 {[%clk 0:02:45]}  Bd7 {[%clk 0:02:48]} 17. Bf5 {[%clk 0:02:37]}  Rc8 {[%clk 0:02:46]} 18. Rfd1 {[%clk 0:02:19]}  Qc7 {[%clk 0:02:32]} 19. Bxd7 {[%clk 0:02:05]}  Qxd7 {[%clk 0:02:28]} 20. Nf5 {[%clk 0:02:04]}  Qe6 {[%clk 0:02:20]} 21. Rd4 {[%clk 0:02:00]}  Bf8 {[%clk 0:02:17]} 22. Bxf6 {[%clk 0:01:44]}  Qxf6 {[%clk 0:02:17]} 23. Rf4 {[%clk 0:01:41]}  Re4 {[%clk 0:02:05]} 24. Rxe4 {[%clk 0:01:38]}  dxe4 {[%clk 0:02:06]} 25. Ng3 {[%clk 0:01:33]}  Re8 {[%clk 0:01:40]} 26. Nxe4 {[%clk 0:01:17]}  Qg6 {[%clk 0:01:39]} 27. f3 {[%clk 0:01:17]}  f5 {[%clk 0:01:39]} 28. Nd6 {[%clk 0:01:00]}  Bxd6 {[%clk 0:01:37]} 29. cxd6 {[%clk 0:01:00]}  Qxd6 {[%clk 0:01:38]} 30. Rd1 {[%clk 0:00:59]}  Qe6 {[%clk 0:01:34]} 31. Rd3 {[%clk 0:00:58]}  Kh7 {[%clk 0:01:20]} 32. h4 {[%clk 0:00:57]}  Qf6 {[%clk 0:01:19]} 33. h5 {[%clk 0:00:53]}  Re5 {[%clk 0:01:14]} 34. f4 {[%clk 0:00:49]}  Re4 {[%clk 0:01:09]} 35. Qc5 {[%clk 0:00:49]}  Rc4 {[%clk 0:01:04]} 0-1


[Site "https://www.chess.com"]

[Event "Titled Tuesday Blitz January 11 2022"]
[White "Howell, David W L"]
[Black "Vusatiuk, Vladimir"]
[WhiteFideId "410608"]
[BlackFideId "14118610"]
[WhiteElo "2559"]
[BlackElo "2157"]
[Result "1-0"]
[Round "07"]
[TimeControl "180+1"]
[Date "2022.01.11"]
[WhiteClock "0:01:20"]
[BlackClock "0:01:24"]

1. d4 {[%clk 0:03:00]}  Nf6 {[%clk 0:03:00]} 2. c4 {[%clk 0:03:01]}  e6 {[%clk 0:03:00]} 3. Nc3 {[%clk 0:03:01]}  Bb4 {[%clk 0:03:00]} 4. Nf3 {[%clk 0:03:01]}  O-O {[%clk 0:03:00]} 5. g3 {[%clk 0:03:00]}  b6 {[%clk 0:02:59]} 6. Bd2 {[%clk 0:02:58]}  Bb7 {[%clk 0:02:58]} 7. Bg2 {[%clk 0:02:58]}  d6 {[%clk 0:02:53]} 8. O-O {[%clk 0:02:58]}  Nbd7 {[%clk 0:02:54]} 9. Rc1 {[%clk 0:02:51]}  Qe7 {[%clk 0:02:42]} 10. a3 {[%clk 0:02:49]}  Bxc3 {[%clk 0:02:43]} 11. Bxc3 {[%clk 0:02:50]}  Ne4 {[%clk 0:02:43]} 12. Be1 {[%clk 0:02:46]}  f5 {[%clk 0:02:44]} 13. b4 {[%clk 0:02:35]}  a5 {[%clk 0:02:39]} 14. bxa5 {[%clk 0:02:29]}  bxa5 {[%clk 0:02:40]} 15. Rb1 {[%clk 0:02:30]}  Rfb8 {[%clk 0:02:35]} 16. Qd3 {[%clk 0:02:22]}  Ndf6 {[%clk 0:02:31]} 17. a4 {[%clk 0:01:58]}  Bc6 {[%clk 0:02:20]} 18. Rxb8+ {[%clk 0:01:54]}  Rxb8 {[%clk 0:02:21]} 19. Bxa5 {[%clk 0:01:54]}  Ra8 {[%clk 0:02:19]} 20. Be1 {[%clk 0:01:42]}  Rxa4 {[%clk 0:02:16]} 21. Nd2 {[%clk 0:01:43]}  Qd7 {[%clk 0:01:50]} 22. f3 {[%clk 0:01:31]}  Nxd2 {[%clk 0:01:47]} 23. Bxd2 {[%clk 0:01:32]}  e5 {[%clk 0:01:29]} 24. d5 {[%clk 0:01:29]}  Bb7 {[%clk 0:01:27]} 25. Bh3 {[%clk 0:01:26]}  g6 {[%clk 0:01:25]} 26. e4 {[%clk 0:01:23]}  Ba6 {[%clk 0:01:26]} 27. Rc1 {[%clk 0:01:20]}  fxe4 {[%clk 0:01:23]} 28. Bxd7 {[%clk 0:01:19]}  exd3 {[%clk 0:01:24]} 29. Bxa4 {[%clk 0:01:20]} 1-0


[Site "https://www.chess.com"]